lending/lending_fUSD_20240219
["ID","MTS","AMOUNT","RATE_DAILY","PERIOD"]
[314474699,1708373438372,-155.00301461,0.0002509,2]
[314474700,1708373438382,-1047.62,0.00025092,10]
[314474701,1708373438392,-3140.67114013,0.000251,2]
[314474702,1708373438406,-405.15,0.00025126,2]
[314474703,1708373438416,-300.0,0.00025136,2]
[314474704,1708373438427,-161.52,0.00025161,2]
[314474705,1708373438436,-313.46,0.00025164,2]
[314474706,1708373438446,-405.15,0.00025192,2]
[314474707,1708373438455,-405.15,0.00025258,2]
[314474708,1708373438465,-313.46,0.00025286,2]
[314474710,1708373438477,-161.52,0.00025388,2]
[314474712,1708373438486,-313.46,0.00025409,2]
[314474714,1708373438495,-275.81388959,0.0002549,2]
[314474716,1708373438504,-313.46,0.00025532,2]
[314474718,1708373438513,-400.0,0.00025589,2]
[314474720,1708373438522,-161.52,0.00025614,2]
[314474722,1708373438531,-157.54,0.0002563,2]
[314474724,1708373438541,-313.46,0.00025654,2]
[314474726,1708373438551,-1047.62,0.00025665,10]
[314474728,1708373438560,-161.52,0.00025841,2]
[314474730,1708373438569,-1074.84,0.00025973,2]
[314474731,1708373438579,-4200.33703522,0.00026,2]
[314474732,1708373438588,-202.38767356,0.00026,2]
[314474733,1708373438597,-800.0,0.00026027,2]
[314474734,1708373438606,-156.10013124,0.00026039,2]
[314474735,1708373438615,-161.52,0.00026068,2]
[314474736,1708373438624,-1000.0,0.00026075,2]
[314474737,1708373438633,-150.0,0.00026079,2]
[314474738,1708373438642,-172.06,0.00026089,2]
[314474739,1708373438651,-1000.0,0.00026097,2]
[314474740,1708373438660,-161.52,0.00026294,2]
[314474741,1708373438670,-26968.90269269,0.000263,2]
[314474742,1708373438679,-300.0,0.00026506,2]
[314474743,1708373438688,-161.52,0.00026521,2]
[314474744,1708373438698,-13783.4213,0.00026606,2]
[314474745,1708373438706,-1740.11,0.00026689,2]
[314474746,1708373438716,-161.52,0.00026748,2]
[314474747,1708373438725,-39894.14377184,0.0002689,2]
[314474748,1708373438734,-161.52,0.00026974,2]
[314474749,1708373438744,-3487.52514425,0.0002705,2]
[314474750,1708373438754,-3400.56,0.00027123,2]
[314474751,1708373438763,-79547.0,0.00027168,2]
[314474752,1708373438773,-26542.53173485,0.000272,2]
[314474753,1708373438782,-161.52,0.00027201,2]
[314474754,1708373438791,-168.01,0.00027286,2]
[314474755,1708373438800,-155.0,0.00027397,2]
[314474756,1708373438810,-158.51,0.00027397,2]
[314474757,1708373438819,-161.52,0.00027428,2]
[314474758,1708373438830,-600.0,0.00027479,2]
[314474759,1708373438839,-186.92679244,0.000275,2]
[314474760,1708373438849,-8259.31951894,0.000275,2]
[314474761,1708373438858,-156.10013124,0.00027509,2]
[314474762,1708373438868,-158.51,0.00027635,2]
[314474763,1708373438877,-158.51,0.00027872,2]
[314474764,1708373438886,-3245.7735,0.000279,2]
[314474765,1708373438896,-211.0,0.000279,2]
[314474766,1708373438905,-213.42711544,0.0002799,2]
[314474767,1708373438914,-183.00001075,0.00027992,2]
[314474768,1708373438923,-360951.7559895,0.00028,2]
[314474769,1708373438961,-155430.64032003,0.00028,2]
[314474770,1708373439667,-1243.04106818,0.00028,2]
[314474771,1708373439679,-747.17880586,0.00028,2]
[314474772,1708373439691,-741.27723955,0.00028,2]
[314474773,1708373439702,-420.8888349,0.00028,2]
[314474774,1708373439713,-313.89851893,0.00028,2]
[314474779,1708373441172,-7962.69163232,0.00028,2]
[314474780,1708373441182,-4275.29983405,0.000281,2]
[314474781,1708373441191,-158.51,0.0002811,2]
[314474782,1708373441200,-1074.84,0.00028237,2]
[314474783,1708373441209,-1740.11,0.00028333,2]
[314474784,1708373441218,-158.51,0.00028347,2]
[314474785,1708373441226,-158.51,0.00028585,2]
[314474786,1708373441235,-155.0,0.00028767,2]
[314474787,1708373441244,-158.51,0.00028822,2]
[314474788,1708373441253,-1000.0,0.00028972,2]
[314474789,1708373441262,-156.10013124,0.00028979,2]
[314474790,1708373441271,-150.0,0.00029,2]
[314474791,1708373441280,-1800.71144531,0.000299,2]
[314474792,1708373441289,-3993.16716862,0.000299,2]
[314474793,1708373441299,-1740.11,0.00029977,2]
[314474794,1708373441308,-456537.38564144,0.0003,2]
[314474795,1708373441317,-360.43720995,0.0003,2]
[314474796,1708373441327,-3044.9992319,0.0003,7]
[314474797,1708373441336,-159.53980533,0.0003,30]
[314474798,1708373441346,-173.0,0.0003,2]
[314474799,1708373441355,-1830.71302,0.0003,2]
[314474800,1708373441364,-1830.71303,0.0003,2]
[314474801,1708373441373,-1830.71303,0.0003,2]
[314474802,1708373441382,-1830.71303,0.0003,2]
[314474803,1708373441393,-1121.46508522,0.000301,2]
[314474804,1708373441404,-156.18,0.00030137,2]
[314474805,1708373441414,-164.26604367,0.00030137,2]
[314474806,1708373441423,-172.06,0.00030438,2]
[314474807,1708373441434,-156.10013124,0.00030449,2]
[314474808,1708373441444,-1074.84,0.000305,2]
[314474809,1708373441453,-1830.71302,0.0003054,2]
[314474810,1708373441463,-1841.69312471,0.00030747,28]
[314474811,1708373441474,-16036.37038815,0.000309,2]
[314474812,1708373441483,-157.54,0.00031068,2]
[314474813,1708373441493,-168.01,0.00031184,2]
[314474814,1708373441502,-3993.16716852,0.00031262,2]
[314474815,1708373441512,-647.07,0.00031388,2]
[314474816,1708373441521,-5087.21744401,0.000314,30]
[314474817,1708373441530,-192.31261562,0.000315,2]
[314474818,1708373441539,-1740.11,0.00031621,2]
[314474819,1708373441548,-1830.71303,0.0003179,2]
[314474820,1708373441557,-41643.918065,0.000318,3]
[314474821,1708373441566,-1000.0,0.00031869,2]
[314474822,1708373441577,-156.10013124,0.00031918,2]
[314474823,1708373441587,-4396.26985613,0.00032125,2]
[314474824,1708373441596,-2686.0,0.000324,2]
[314474825,1708373441606,-17990.0,0.000324,2]
[314474826,1708373441616,-3993.16716852,0.00032624,4]
[314474827,1708373441625,-885.75,0.00032679,2]
[314474828,1708373441634,-1074.84,0.00032764,2]
[314474829,1708373441643,-55671.65,0.00032877,2]
[314474830,1708373441652,-2642.324,0.000329,2]
[314474831,1708373441661,-647.07,0.00032957,2]
[314474832,1708373441670,-1527.12122368,0.00033,2]
[314474833,1708373441681,-173.0,0.00033,2]
[314474834,1708373441690,-156.10013124,0.00033388,2]
[314474835,1708373441701,-156.18,0.0003379,2]
[314474836,1708373441710,-153.11444874,0.000339,2]
[314474837,1708373441720,-153.11444861,0.000339,2]
[314474838,1708373441730,-153.11444861,0.000339,2]
[314474839,1708373441739,-153.11444861,0.000339,2]
[314474840,1708373441749,-153.11444861,0.000339,2]
[314474841,1708373441760,-3993.16716852,0.00033985,6]
[314474842,1708373441770,-1907.452742,0.0003452,2]
[314474843,1708373441780,-1624.184882,0.0003452,2]
[314474844,1708373441789,-1590.96,0.00034521,2]
[314474845,1708373441799,-647.07,0.00034527,2]
[314474846,1708373441808,-1000.0,0.00034766,2]
[314474847,1708373441818,-172.06,0.00034786,2]
[314474848,1708373441830,-2861.179113,0.00034794,2]
[314474849,1708373441840,-2436.277323,0.00034794,2]
[314474850,1708373441852,-156.10013124,0.00034858,2]
[314474851,1708373441862,-1486.61415466,0.000349,2]
[314474852,1708373441873,-1486.6141545,0.000349,2]
[314474853,1708373441883,-1486.6141545,0.000349,2]
[314474854,1708373441894,-1486.6141545,0.000349,2]
[314474855,1708373441904,-1486.6141545,0.000349,2]
[314474856,1708373441914,-3814.905484,0.00034931,2]
[314474857,1708373441924,-3248.369764,0.00034931,2]
[314474858,1708373441934,-1486.6141545,0.0003495,2]
[314474859,1708373441944,-1022.95663426,0.00035,2]
[314474860,1708373441953,-1074.84,0.00035028,2]
[314474861,1708373441963,-4768.631855,0.00035068,2]
[314474862,1708373441974,-4060.462206,0.00035068,2]
[314474863,1708373441984,-168.01,0.00035082,2]
[314474864,1708373441993,-153.11444861,0.00035295,2]
[314474865,1708373442003,-213.42711544,0.00035337,2]
[314474866,1708373442013,-6676.084597,0.00035342,2]
[314474867,1708373442023,-5684.647088,0.00035342,2]
[314474868,1708373442033,-3993.16716852,0.00035347,8]
[314474869,1708373442042,-19836.96394354,0.000356,2]
[314474870,1708373442052,-2510.15,0.00035616,2]
[314474871,1708373442061,-1500.0,0.00035616,10]
[314474872,1708373442071,-5768.61,0.00035616,2]
[314474873,1708373442086,-2852.78914215,0.000357,2]
[314474874,1708373442095,-1590.96,0.00035798,2]
[314474875,1708373442104,-1682.33667444,0.0003591,5]
[314474876,1708373442113,-259.01,0.00036,30]
[314474877,1708373442123,-166.8,0.00036076,2]
[314474878,1708373442132,-647.07,0.00036096,2]
[314474879,1708373442141,-259.01,0.00036137,30]
[314474880,1708373442151,-259.01,0.00036274,30]
[314474881,1708373442160,-156.10013124,0.00036328,2]
[314474882,1708373442170,-24553.16443602,0.00036389,2]
[314474883,1708373442179,-24553.16443593,0.00036389,2]
[314474884,1708373442189,-24553.16443593,0.00036389,2]
[314474885,1708373442199,-24553.16443593,0.00036389,2]
[314474886,1708373442209,-24553.16443593,0.00036389,2]
[314474887,1708373442218,-11682.84184913,0.00036389,2]
[314474888,1708373442227,-309.76882215,0.00036389,2]
[314474889,1708373442237,-172.3153365,0.00036389,2]
[314474890,1708373442247,-259.01,0.00036411,30]
[314474891,1708373442256,-1486.6141545,0.00036529,2]
[314474892,1708373442265,-284.24608196,0.00036548,30]
[314474893,1708373442276,-3993.16716852,0.00036709,9]
[314474894,1708373442286,-153.11444861,0.00036755,2]
[314474895,1708373442303,-508.7503902,0.00036798,2]
[314474896,1708373442323,-508.7503902,0.00036798,2]
[314474897,1708373442335,-508.7503902,0.00036798,2]
[314474898,1708373442344,-508.7503902,0.00036798,2]
[314474899,1708373442353,-508.7503902,0.00036798,2]
[314474900,1708373442362,-24553.16443593,0.00036886,2]
[314474901,1708373442372,-508.7503902,0.00036886,2]
[314474902,1708373442381,-7000.0,0.000369,10]
[314474903,1708373442392,-176.45727145,0.00036946,7]
[314474904,1708373442404,-4151.0,0.00037046,2]
[314474905,1708373442414,-150.1,0.00037054,2]
[314474906,1708373442423,-1590.96,0.00037075,2]
[314474907,1708373442433,-1144.95702974,0.00037267,2]
[314474908,1708373442442,-1074.84,0.00037292,2]
[314474909,1708373442451,-1006.9499392,0.000374,5]
[314474910,1708373442460,-156.18,0.00037443,2]
[314474911,1708373442469,-1000.0,0.00037463,5]
[314474912,1708373442479,-29253.71708224,0.000375,5]
[314474913,1708373442489,-150.0,0.00037595,2]
[314474914,1708373442499,-647.07,0.00037665,2]
[314474915,1708373442509,-1144.95702974,0.00037693,2]
[314474916,1708373442518,-1000.0,0.00037699,2]
[314474917,1708373442528,-906.86739472,0.0003779,2]
[314474918,1708373442537,-156.10013124,0.00037798,2]
[314474919,1708373442547,-427.09696993,0.00037798,2]
[314474920,1708373442556,-180.72528977,0.00037799,2]
[314474921,1708373442565,-2012.64580488,0.00037799,2]
[314474922,1708373442575,-6167.33,0.00037873,2]
[314474923,1708373442584,-213.42711544,0.0003789,2]
[314474924,1708373442593,-208.94714539,0.00037898,4]
[314474925,1708373442603,-155.33881715,0.00037898,4]
[314474926,1708373442612,-1433.86968206,0.00037898,4]
[314474927,1708373442622,-161.50756444,0.00037898,4]
[314474928,1708373442631,-5872.21599428,0.00037899,4]
[314474929,1708373442641,-246.36872012,0.00037899,4]
[314474930,1708373442650,-155.0,0.00037899,4]
[314474931,1708373442659,-365988.01784036,0.000379,7]
[314474932,1708373442669,-301.18517736,0.000379,2]
[314474933,1708373442678,-2000.0,0.000379,2]
[314474934,1708373442687,-200.0,0.000379,2]
[314474935,1708373442696,-279873.69758356,0.000379,10]
[314474936,1708373442706,-2000.0,0.000379,2]
[314474937,1708373442715,-200.0,0.000379,2]
[314474938,1708373442724,-660046.405657,0.000379,3]
[314474940,1708373442733,-151.0,0.00037912,30]
[314474942,1708373442742,-166.33759763,0.00038,2]
[314474943,1708373442752,-391.0,0.00038,2]
[314474945,1708373442761,-155.0,0.00038,2]
[314474946,1708373442771,-1350.56,0.00038033,2]
[314474947,1708373442780,-3993.16716852,0.00038071,11]
[314474948,1708373442790,-1486.6141545,0.00038108,2]
[314474949,1708373442800,-153.11444861,0.00038216,2]
[314474950,1708373442809,-1350.56,0.0003823,2]
[314474951,1708373442819,-1144.95702976,0.00038245,2]
[314474952,1708373442829,-2000.0,0.00038279,2]
[314474953,1708373442838,-200.0,0.00038279,2]
[314474954,1708373442848,-2000.0,0.00038279,2]
[314474955,1708373442857,-200.0,0.00038279,2]
[314474956,1708373442867,-152.0,0.00038306,3]
[314474957,1708373442876,-1590.96,0.00038352,2]
[314474958,1708373442886,-150.0,0.00038356,2]
[314474959,1708373442895,-566.79,0.00038356,15]
[314474960,1708373442905,-1350.56,0.00038427,2]
[314474961,1708373442915,-1350.56,0.00038624,2]
[314474962,1708373442924,-391.0,0.0003863,14]
[314474963,1708373442934,-3778.47794931,0.00038649,9]
[314474964,1708373442944,-5553.86205134,0.00038652,10]
[314474965,1708373442954,-7904.61217443,0.00038657,10]
[314474966,1708373442963,-2000.0,0.00038662,2]
[314474967,1708373442973,-200.0,0.00038662,2]
[314474968,1708373442983,-27925.74869839,0.00038663,16]
[314474969,1708373442992,-7711.36182734,0.00038669,14]
[314474970,1708373443002,-151.0,0.00038686,7]
[314474971,1708373443012,-183.00001075,0.000388,2]
[314474972,1708373443022,-1350.56,0.00038821,2]
[314474973,1708373443032,-1190591.83051774,0.000389,3]
[314474974,1708373443042,-488.38184408,0.000389,2]
[314474975,1708373443051,-22972.76,0.000389,7]
[314474976,1708373443060,-4699.39,0.000389,7]
[314474977,1708373443070,-16911.83,0.000389,7]
[314474978,1708373443080,-153.01,0.000389,3]
[314474979,1708373443090,-153.01,0.000389,3]
[314474980,1708373443100,-1359.45,0.000389,3]
[314474981,1708373443109,-1359.45,0.000389,3]
[314474982,1708373443119,-1359.45,0.000389,3]
[314474983,1708373443128,-1359.45,0.000389,3]
[314474984,1708373443138,-1359.45,0.000389,3]
[314474985,1708373443147,-1359.45,0.000389,3]
[314474986,1708373443156,-1359.45,0.000389,3]
[314474987,1708373443165,-1359.45,0.000389,3]
[314474988,1708373443176,-1359.45,0.000389,3]
[314474989,1708373443185,-1359.45,0.000389,3]
[314474990,1708373443195,-1359.45,0.000389,3]
[314474991,1708373443204,-1359.45,0.000389,3]
[314474992,1708373443213,-1359.45,0.000389,3]
[314474993,1708373443222,-1359.45,0.000389,3]
[314474994,1708373443232,-1359.45,0.000389,3]
[314474995,1708373443241,-1359.45,0.000389,3]
[314474996,1708373443250,-1359.45,0.000389,3]
[314474997,1708373443259,-1359.45,0.000389,3]
[314474998,1708373443270,-1359.45,0.000389,3]
[314474999,1708373443279,-1359.45,0.000389,3]
[314475000,1708373443288,-617.78648541,0.000389,2]
[314475001,1708373443297,-617.78648535,0.000389,2]
[314475002,1708373443306,-617.78648535,0.000389,2]
[314475003,1708373443316,-617.78648535,0.000389,2]
[314475005,1708373443326,-617.78648535,0.000389,2]
[314475006,1708373443335,-617.78648535,0.000389,2]
[314475007,1708373443344,-617.78648535,0.000389,2]
[314475008,1708373443353,-617.78648535,0.000389,2]
[314475009,1708373443362,-617.78648535,0.000389,2]
[314475010,1708373443372,-617.78648535,0.000389,2]
[314475011,1708373443381,-617.78648535,0.000389,2]
[314475012,1708373443394,-617.78648535,0.000389,2]
[314475013,1708373443403,-617.78648535,0.000389,2]
[314475014,1708373443413,-391.0,0.00038904,14]
[314475016,1708373443422,-137124.5869933,0.0003897,2]
[314475018,1708373443432,-900.0,0.00039,3]
[314475020,1708373443442,-1350.56,0.00039018,2]
[314475022,1708373443452,-2000.0,0.00039048,2]
[314475023,1708373443461,-200.0,0.00039048,2]
[314475024,1708373443470,-166.8,0.00039053,2]
[314475025,1708373443480,-172.06,0.00039134,2]
[314475026,1708373443490,-391.0,0.00039178,14]
[314475027,1708373443499,-2000.0,0.000392,2]
[314475028,1708373443508,-1350.56,0.00039215,2]
[314475029,1708373443517,-600.0,0.0003926,2]
[314475030,1708373443527,-150.0,0.000393,2]
[314475031,1708373443536,-1000.0,0.00039323,2]
[314475032,1708373443545,-24553.16443593,0.00039352,2]
[314475033,1708373443554,-508.7503902,0.00039352,2]
[314475034,1708373443563,-150.0,0.00039366,2]
[314475035,1708373443574,-1350.56,0.00039412,2]
[314475036,1708373443585,-3993.16716852,0.00039433,13]
[314475037,1708373443595,-2000.0,0.00039439,2]
[314475038,1708373443604,-200.0,0.00039439,2]
[314475039,1708373443614,-391.0,0.00039452,14]
[314475040,1708373443623,-151.0,0.00039475,4]
[314475041,1708373443812,-799.14401494,0.00039554,31]
[314475042,1708373443858,-1074.84,0.00039556,2]
[314475043,1708373443867,-1350.56,0.00039609,2]
[314475044,1708373443877,-1590.96,0.0003963,2]
[314475045,1708373443886,-153.11444861,0.00039676,5]
[314475046,1708373443895,-1486.6141545,0.00039687,2]
[314475047,1708373443904,-875.92607604,0.00039762,7]
[314475048,1708373443914,-543.7963038,0.0003977,7]
[314475049,1708373443923,-3253.93189386,0.0003977,8]
[314475050,1708373443932,-177.14057297,0.0003977,7]
[314475051,1708373443942,-1758.15428303,0.0003977,8]
[314475052,1708373443951,-1867.12275307,0.0003977,8]
[314475053,1708373443960,-686.74445392,0.0003977,8]
[314475054,1708373443970,-404.09077228,0.00039781,7]
[314475055,1708373443979,-1671.93447684,0.00039781,7]
[314475056,1708373443988,-385.21332748,0.00039796,8]
[314475057,1708373443997,-1561.20695673,0.000398,7]
[314475058,1708373444006,-4699.39,0.000398,7]
[314475059,1708373444016,-16911.83,0.000398,7]
[314475060,1708373444026,-1350.56,0.00039806,2]
[314475061,1708373444035,-762.88870377,0.00039822,7]
[314475062,1708373444044,-22972.76,0.000399,7]
[314475063,1708373444054,-196280.37445559,0.0003993,2]
[314475064,1708373444064,-565.37,0.0003999,3]
[314475065,1708373444074,-150.0,0.00039999,2]
[314475066,1708373444084,-150.0,0.00039999,2]
[314475067,1708373444094,-2456.11480159,0.0004,4]
[314475068,1708373444103,-664.69780361,0.0004,10]
[314475069,1708373444112,-4535.81629304,0.0004,4]
[314475070,1708373444121,-120317.26622267,0.0004,30]
[314475071,1708373444130,-2779.66160561,0.0004,7]
[314475072,1708373444139,-492.4658943,0.0004,2]
[314475073,1708373444148,-1239.37742129,0.0004,2]
[314475074,1708373444157,-1350.56,0.00040004,2]
[314475075,1708373444168,-1350.56,0.00040201,2]
[314475076,1708373444177,-391.0,0.00040274,14]
[314475077,1708373444186,-155.0,0.00040274,14]
[314475078,1708373444195,-151.0,0.00040281,2]
[314475079,1708373444205,-1048.05810516,0.00040289,2]
[314475080,1708373444214,-150.0,0.00040375,2]
[314475081,1708373444223,-1350.56,0.00040398,2]
[314475082,1708373444233,-1350.56,0.00040595,2]
[314475083,1708373444241,-414.49269636,0.00040597,5]
[314475084,1708373444250,-1000.0,0.000406,15]
[314475085,1708373444259,-150.0,0.00040651,3]
[314475086,1708373444268,-150.0,0.00040651,3]
[314475087,1708373444277,-150.0,0.00040651,3]
[314475088,1708373444287,-150.0,0.00040651,3]
[314475089,1708373444296,-150.0,0.00040651,3]
[314475090,1708373444305,-150.0,0.00040651,3]
[314475091,1708373444314,-11682.84184913,0.00040652,2]
[314475092,1708373444323,-151.0,0.00040652,7]
[314475093,1708373444333,-151.0,0.00040652,14]
[314475094,1708373444342,-151.0,0.00040652,14]
[314475095,1708373444351,-261.832825,0.00040652,14]
[314475096,1708373444360,-261.832825,0.00040652,14]
[314475097,1708373444369,-261.832825,0.00040652,14]
[314475098,1708373444379,-261.832825,0.00040652,14]
[314475099,1708373444388,-151.0,0.00040652,3]
[314475100,1708373444400,-151.0,0.00040652,3]
[314475101,1708373444409,-151.0,0.00040652,14]
[314475102,1708373444418,-152.401369,0.00040652,14]
[314475103,1708373444427,-279.403392,0.00040652,14]
[314475104,1708373444436,-279.403392,0.00040652,14]
[314475105,1708373444447,-279.403392,0.00040652,14]
[314475106,1708373444456,-279.403392,0.00040652,14]
[314475107,1708373444466,-151.0,0.00040652,14]
[314475108,1708373444476,-151.0,0.00040652,14]
[314475109,1708373444486,-151.0,0.00040652,14]
[314475110,1708373444495,-199.123892,0.00040652,14]
[314475111,1708373444504,-151.0,0.00040652,14]
[314475112,1708373444513,-151.0,0.00040652,14]
[314475113,1708373444522,-151.0,0.00040652,14]
[314475114,1708373444531,-151.0,0.00040652,14]
[314475115,1708373444540,-487.166652,0.00040652,14]
[314475116,1708373444550,-487.166652,0.00040652,14]
[314475117,1708373444559,-151.0,0.00040652,14]
[314475118,1708373444568,-151.0,0.00040652,14]
[314475119,1708373444578,-151.0,0.00040652,14]
[314475120,1708373444587,-151.0,0.00040652,14]
[314475121,1708373444596,-487.166652,0.00040652,14]
[314475122,1708373444605,-487.166652,0.00040652,14]
[314475123,1708373444614,-151.0,0.00040652,14]
[314475124,1708373444624,-155.12025,0.00040652,14]
[314475125,1708373444633,-927.050552,0.00040652,14]
[314475126,1708373444642,-927.050552,0.00040652,14]
[314475127,1708373444651,-927.050552,0.00040652,14]
[314475128,1708373444662,-151.0,0.00040652,14]
[314475129,1708373444672,-927.050552,0.00040652,14]
[314475130,1708373444682,-151.0,0.00040652,14]
[314475131,1708373444695,-335.736988,0.00040652,14]
[314475132,1708373444704,-335.736988,0.00040652,14]
[314475133,1708373444713,-335.736988,0.00040652,14]
[314475134,1708373444722,-335.736988,0.00040652,14]
[314475135,1708373444730,-351.044009,0.00040652,14]
[314475136,1708373444740,-351.044009,0.00040652,14]
[314475137,1708373444751,-351.044009,0.00040652,14]
[314475138,1708373444769,-351.044009,0.00040652,14]
[314475139,1708373444778,-398.210731,0.00040652,14]
[314475140,1708373444788,-398.210731,0.00040652,14]
[314475141,1708373444797,-398.210731,0.00040652,14]
[314475142,1708373444807,-398.210731,0.00040652,14]
[314475143,1708373444816,-151.0,0.00040652,14]
[314475144,1708373444825,-151.0,0.00040652,14]
[314475145,1708373444836,-151.0,0.00040652,14]
[314475146,1708373444845,-159.337444,0.00040652,14]
[314475147,1708373444854,-151.0,0.00040652,14]
[314475148,1708373444863,-151.0,0.00040652,14]
[314475149,1708373444872,-153.687036,0.00040652,14]
[314475150,1708373444882,-151.0,0.00040652,14]
[314475151,1708373444892,-151.0,0.00040652,14]
[314475152,1708373444901,-151.0,0.00040652,14]
[314475153,1708373444911,-151.0,0.00040652,14]
[314475154,1708373444920,-151.0,0.00040652,14]
[314475155,1708373444930,-151.0,0.00040652,14]
[314475156,1708373444939,-151.0,0.00040652,14]
[314475157,1708373444948,-151.0,0.00040652,14]
[314475158,1708373444958,-383.205546,0.00040652,14]
[314475159,1708373444967,-383.205546,0.00040652,14]
[314475160,1708373444976,-383.205546,0.00040652,14]
[314475161,1708373444986,-383.205546,0.00040652,14]
[314475162,1708373444995,-284.879995,0.00040652,14]
[314475163,1708373445004,-284.879995,0.00040652,14]
[314475164,1708373445014,-284.879995,0.00040652,14]
[314475165,1708373445023,-284.879995,0.00040652,14]
[314475166,1708373445032,-151.0,0.00040652,14]
[314475167,1708373445041,-151.0,0.00040652,14]
[314475168,1708373445051,-151.0,0.00040652,14]
[314475169,1708373445060,-151.0,0.00040652,14]
[314475170,1708373445070,-151.0,0.00040652,14]
[314475171,1708373445079,-151.551928,0.00040652,14]
[314475172,1708373445088,-151.0,0.00040652,14]
[314475173,1708373445098,-151.0,0.00040652,14]
[314475174,1708373445107,-151.0,0.00040652,14]
[314475175,1708373445117,-151.0,0.00040652,14]
[314475176,1708373445126,-151.0,0.00040652,14]
[314475177,1708373445135,-151.0,0.00040652,14]
[314475178,1708373445144,-151.0,0.00040652,14]
[314475179,1708373445153,-151.0,0.00040652,14]
[314475180,1708373445162,-1151.852254,0.00040652,14]
[314475181,1708373445173,-1151.852254,0.00040652,14]
[314475182,1708373445182,-151.0,0.00040652,14]
[314475183,1708373445191,-151.0,0.00040652,14]
[314475184,1708373445201,-1151.852254,0.00040652,14]
[314475185,1708373445211,-1151.852254,0.00040652,14]
[314475186,1708373445220,-151.0,0.00040652,14]
[314475187,1708373445229,-151.0,0.00040652,14]
[314475188,1708373445238,-151.0,0.00040652,14]
[314475189,1708373445248,-151.0,0.00040652,14]
[314475190,1708373445257,-894.680383,0.00040652,14]
[314475191,1708373445266,-894.680383,0.00040652,14]
[314475192,1708373445275,-894.680383,0.00040652,14]
[314475193,1708373445284,-894.680383,0.00040652,14]
[314475194,1708373445294,-151.0,0.00040652,14]
[314475195,1708373445303,-151.0,0.00040652,14]
[314475196,1708373445313,-151.0,0.00040652,14]
[314475197,1708373445322,-151.0,0.00040652,14]
[314475198,1708373445332,-151.0,0.00040652,14]
[314475199,1708373445341,-151.0,0.00040652,14]
[314475200,1708373445350,-212.66112,0.00040652,14]
[314475201,1708373445359,-152.300074,0.00040652,14]
[314475202,1708373445369,-151.0,0.00040652,14]
[314475203,1708373445378,-151.0,0.00040652,14]
[314475204,1708373445387,-151.0,0.00040652,14]
[314475205,1708373445398,-151.0,0.00040652,14]
[314475206,1708373445408,-2321.73908,0.00040652,14]
[314475207,1708373445417,-2321.73908,0.00040652,14]
[314475208,1708373445426,-2321.73908,0.00040652,14]
[314475209,1708373445435,-2321.73908,0.00040652,14]
[314475210,1708373445446,-151.0,0.00040652,14]
[314475211,1708373445454,-151.0,0.00040652,14]
[314475212,1708373445463,-151.0,0.00040656,14]
[314475213,1708373445472,-151.0,0.00040656,14]
[314475214,1708373445482,-151.0,0.00040656,14]
[314475215,1708373445492,-151.0,0.00040656,14]
[314475216,1708373445502,-151.0,0.00040656,14]
[314475217,1708373445511,-151.0,0.00040656,14]
[314475218,1708373445520,-151.0,0.00040656,14]
[314475219,1708373445529,-151.0,0.00040656,14]
[314475220,1708373445538,-151.0,0.00040656,14]
[314475221,1708373445548,-151.0,0.00040656,14]